[Event "7th Paul Keres Memorial Festival 2026 Classic A"]
[Site "ESTONIA Resort Hotel & Spa conference center, EE"]
[Date "2026.08.01"]
[Round "9"]
[White "Povilaitis, Tomas"]
[Black "Laurusas, Tomas"]
[Result "1/2-1/2"]
[Board "3"]
[TimeControl "5400+30"]
[WhiteFideId "12811700"]
[BlackFideId "12803731"]
[WhiteElo "2150"]
[BlackElo "2511"]
[BlackTitle "GM"]
[WhiteClock "0:03:14"]
[BlackClock "0:06:53"]
[Variant "Standard"]
[EndDate "2026.08.01"]
[EndTime "11:34:02"]

1. e4 {[%clk 1:30:57]}  c5 {[%clk 1:30:22]} 2. Nf3 {[%clk 1:31:21]}  e6 {[%clk 1:30:45]} 3. Nc3 {[%clk 1:31:46]}  d6 {[%clk 1:28:50]}
4. d4 {[%clk 1:32:05]}  cxd4 {[%clk 1:29:15]} 5. Nxd4 {[%clk 1:32:30]}  Bd7 {[%clk 1:29:35]} 6. Bd3 {[%clk 1:32:10]}  Nc6 {[%clk 1:29:14]}
7. Nxc6 {[%clk 1:32:09]}  Bxc6 {[%clk 1:29:34]} 8. O-O {[%clk 1:32:11]}  Nf6 {[%clk 1:29:03]} 9. Qe2 {[%clk 1:31:43]}  Be7 {[%clk 1:25:52]}
10. Kh1 {[%clk 1:28:22]}  h5 {[%clk 1:21:27]} 11. b4 {[%clk 1:21:47]}  a6 {[%clk 1:15:22]} 12. Rb1 {[%clk 1:09:58]}  h4 {[%clk 1:10:11]}
13. h3 {[%clk 1:09:41]}  Nh5 {[%clk 1:09:33]} 14. a4 {[%clk 0:53:06]}  Bf6 {[%clk 1:05:55]} 15. Bd2 {[%clk 0:53:04]}  Be5 {[%clk 0:55:48]}
16. b5 {[%clk 0:51:12]}  axb5 {[%clk 0:55:48]} 17. axb5 {[%clk 0:51:31]}  Bd7 {[%clk 0:56:14]} 18. Qf3 {[%clk 0:47:21]}  g5 {[%clk 0:45:17]}
19. Ne2 {[%clk 0:43:36]}  Qf6 {[%clk 0:36:09]} 20. Qxf6 {[%clk 0:42:14]}  Bxf6 {[%clk 0:36:35]} 21. g4 {[%clk 0:34:56]}  hxg3 {[%clk 0:34:33]}
22. fxg3 {[%clk 0:35:21]}  Be5 {[%clk 0:33:42]} 23. Kg2 {[%clk 0:33:30]}  Rg8 {[%clk 0:33:13]} 24. g4 {[%clk 0:32:00]}  Nf6 {[%clk 0:33:36]}
25. Ng1 {[%clk 0:30:51]}  Ke7 {[%clk 0:27:53]} 26. Nf3 {[%clk 0:24:54]}  Bf4 {[%clk 0:28:21]} 27. Bb4 {[%clk 0:25:17]}  e5 {[%clk 0:26:58]}
28. Ra1 {[%clk 0:22:23]}  Be6 {[%clk 0:24:39]} 29. Nd2 {[%clk 0:18:39]}  Rgc8 {[%clk 0:21:40]} 30. Rfb1 {[%clk 0:17:55]}  Nd7 {[%clk 0:19:16]}
31. Rxa8 {[%clk 0:14:21]}  Rxa8 {[%clk 0:19:36]} 32. Nc4 {[%clk 0:14:43]}  Nc5 {[%clk 0:19:55]} 33. Na5 {[%clk 0:13:25]}  Be3 {[%clk 0:10:25]}
34. Kf3 {[%clk 0:09:15]}  Bd4 {[%clk 0:09:03]} 35. Bf1 {[%clk 0:08:41]}  b6 {[%clk 0:05:00]} 36. Nc4 {[%clk 0:06:57]}  Ra2 {[%clk 0:04:56]}
37. Bxc5 {[%clk 0:03:48]}  Bxc5 {[%clk 0:05:08]} 38. Bd3 {[%clk 0:03:39]}  Ra4 {[%clk 0:02:39]} 39. Nd2 {[%clk 0:04:04]}  d5 {[%clk 0:02:39]}
40. Ke2 {[%clk 0:04:33]}  Bd4 {[%clk 0:02:17]} 41. Kf3 {[%clk 0:01:34]}  Bc3 {[%clk 0:02:08]} 42. Nf1 {[%clk 0:01:52]}  Ra3 {[%clk 0:01:28]}
43. Ng3 {[%clk 0:01:25]}  dxe4+ {[%clk 0:01:26]} 44. Nxe4 {[%clk 0:01:48]}  Bd5 {[%clk 0:01:53]} 45. Ke2 {[%clk 0:02:09]}  Bd4 {[%clk 0:02:19]}
46. Kf3 {[%clk 0:01:48]}  f6 {[%clk 0:01:58]} 47. Rh1 {[%clk 0:00:45]}  Bc5 {[%clk 0:02:13]} 48. h4 {[%clk 0:00:40]}  gxh4 {[%clk 0:02:11]}
49. Rxh4 {[%clk 0:01:09]}  Ra1 {[%clk 0:02:11]} 50. Ke2 {[%clk 0:01:17]}  Bb4 {[%clk 0:02:26]} 51. Nxf6 {[%clk 0:00:48]}  Kxf6 {[%clk 0:00:50]}
52. g5+ {[%clk 0:01:18]}  Kxg5 {[%clk 0:01:14]} 53. Rxb4 {[%clk 0:01:47]}  Rh1 {[%clk 0:01:33]} 54. Ra4 {[%clk 0:02:05]}  Rh2+ {[%clk 0:01:48]}
55. Ke3 {[%clk 0:02:29]}  Rh3+ {[%clk 0:02:10]} 56. Ke2 {[%clk 0:02:45]}  Be6 {[%clk 0:01:52]} 57. Ra8 {[%clk 0:01:24]}  Bd5 {[%clk 0:01:32]}
58. Re8 {[%clk 0:01:37]}  Kf6 {[%clk 0:01:55]} 59. Kd2 {[%clk 0:01:27]}  Rh5 {[%clk 0:01:20]} 60. Rb8 {[%clk 0:01:38]}  e4 {[%clk 0:01:41]}
61. Rxb6+ {[%clk 0:02:01]}  Ke5 {[%clk 0:02:11]} 62. Be2 {[%clk 0:02:29]}  Rh2 {[%clk 0:02:29]} 63. Ke3 {[%clk 0:02:05]}  Rh3+ {[%clk 0:02:55]}
64. Kd2 {[%clk 0:02:29]}  Kd4 {[%clk 0:02:31]} 65. Rb8 {[%clk 0:01:39]}  e3+ {[%clk 0:02:48]} 66. Kc1 {[%clk 0:02:07]}  Rh2 {[%clk 0:02:53]}
67. Bd3 {[%clk 0:02:33]}  Be6 {[%clk 0:02:41]} 68. Rb6 {[%clk 0:01:44]}  Bd5 {[%clk 0:02:21]} 69. Rb8 {[%clk 0:02:02]}  Be6 {[%clk 0:02:09]}
70. Rb6 {[%clk 0:02:30]}  Bd7 {[%clk 0:02:01]} 71. Rb7 {[%clk 0:02:28]}  Bf5 {[%clk 0:01:21]} 72. Bxf5 {[%clk 0:01:24]}  Rh1+ {[%clk 0:01:45]}
73. Kb2 {[%clk 0:01:52]}  e2 {[%clk 0:02:10]} 74. Re7 {[%clk 0:02:16]}  e1=Q {[%clk 0:02:33]} 75. Rxe1 {[%clk 0:02:44]}  Rxe1 {[%clk 0:02:57]}
76. b6 {[%clk 0:02:05]}  Re8 {[%clk 0:02:36]} 77. b7 {[%clk 0:02:29]}  Rb8 {[%clk 0:03:03]} 78. Bc8 {[%clk 0:02:55]}  Kc4 {[%clk 0:03:30]}
79. c3 {[%clk 0:02:29]}  Kc5 {[%clk 0:03:56]} 80. Kb3 {[%clk 0:02:53]}  Kb5 {[%clk 0:04:22]} 81. c4+ {[%clk 0:02:51]}  Kc5 {[%clk 0:04:47]}
82. Kc3 {[%clk 0:03:14]}  Kd6 {[%clk 0:05:06]} 83. Kd4 {[%clk 0:02:29]}  Kc6 {[%clk 0:05:34]} 84. c5 {[%clk 0:02:25]}  Rxb7 {[%clk 0:05:58]}
85. Bxb7+ {[%clk 0:02:50]}  Kxb7 {[%clk 0:06:25]} 86. c6+ {[%clk 0:03:14]}  Kxc6 {[%clk 0:06:53]} 87. Ke4 {[%clk 0:03:07]} 1/2-1/2

[Event "7th Paul Keres Memorial Festival 2026 Classic A"]
[Site "ESTONIA Resort Hotel & Spa conference center, EE"]
[Date "2026.08.01"]
[Round "9"]
[White "Ostensen, Nicolai Maxime"]
[Black "Jakubowski, Krzysztof"]
[Result "0-1"]
[Board "4"]
[TimeControl "5400+30"]
[WhiteFideId "1546970"]
[BlackFideId "1112848"]
[WhiteElo "2407"]
[BlackElo "2424"]
[WhiteTitle "FM"]
[BlackTitle "GM"]
[WhiteClock "0:02:25"]
[BlackClock "0:01:41"]
[Variant "Standard"]
[EndDate "2026.08.01"]
[EndTime "11:12:58"]

1. c4 {[%clk 1:30:18]}  b6 {[%clk 1:30:01]} 2. Nc3 {[%clk 1:29:06]}  Bb7 {[%clk 1:30:24]} 3. d4 {[%clk 1:27:33]}  e6 {[%clk 1:30:46]}
4. Nf3 {[%clk 1:22:56]}  Bb4 {[%clk 1:27:03]} 5. Qc2 {[%clk 1:18:42]}  f5 {[%clk 1:19:06]} 6. a3 {[%clk 1:18:19]}  Bxc3+ {[%clk 1:19:26]}
7. Qxc3 {[%clk 1:18:43]}  Nf6 {[%clk 1:19:50]} 8. g3 {[%clk 1:10:09]}  a5 {[%clk 1:15:06]} 9. b3 {[%clk 1:10:23]}  O-O {[%clk 1:12:47]}
10. Bg2 {[%clk 1:10:38]}  d6 {[%clk 1:12:51]} 11. O-O {[%clk 1:10:18]}  Qe8 {[%clk 1:08:46]} 12. Bb2 {[%clk 1:08:53]}  Nbd7 {[%clk 1:08:29]}
13. Ng5 {[%clk 1:00:52]}  Bxg2 {[%clk 1:08:20]} 14. Kxg2 {[%clk 1:01:09]}  h6 {[%clk 1:08:30]} 15. Nh3 {[%clk 1:01:19]}  a4 {[%clk 1:04:45]}
16. b4 {[%clk 1:01:38]}  c6 {[%clk 0:45:23]} 17. b5 {[%clk 0:55:47]}  cxb5 {[%clk 0:41:43]} 18. cxb5 {[%clk 0:56:05]}  Rc8 {[%clk 0:41:34]}
19. Qd3 {[%clk 0:55:54]}  Nd5 {[%clk 0:40:35]} 20. Rac1 {[%clk 0:54:40]}  Rxc1 {[%clk 0:36:46]} 21. Rxc1 {[%clk 0:54:46]}  Qa8 {[%clk 0:37:12]}
22. f3 {[%clk 0:54:08]}  Rc8 {[%clk 0:37:33]} 23. Nf2 {[%clk 0:53:03]}  N7f6 {[%clk 0:34:02]} 24. e4 {[%clk 0:49:29]}  fxe4 {[%clk 0:33:56]}
25. fxe4 {[%clk 0:49:35]}  Ne7 {[%clk 0:34:01]} 26. Re1 {[%clk 0:45:22]}  d5 {[%clk 0:26:27]} 27. Kh3 {[%clk 0:44:58]}  dxe4 {[%clk 0:24:18]}
28. Nxe4 {[%clk 0:45:19]}  Nxe4 {[%clk 0:24:43]} 29. Rxe4 {[%clk 0:45:37]}  Nd5 {[%clk 0:18:56]} 30. Rxe6 {[%clk 0:35:35]}  Rf8 {[%clk 0:13:46]}
31. Qe2 {[%clk 0:32:30]}  Qc8 {[%clk 0:12:57]} 32. Kg2 {[%clk 0:29:10]}  Qb7 {[%clk 0:12:14]} 33. Kg1 {[%clk 0:28:43]}  Qf7 {[%clk 0:12:37]}
34. Re5 {[%clk 0:27:48]}  Kh8 {[%clk 0:09:47]} 35. Qg2 {[%clk 0:16:10]}  Qg6 {[%clk 0:07:49]} 36. Qe4 {[%clk 0:08:38]}  Qf7 {[%clk 0:07:35]}
37. Qe2 {[%clk 0:08:40]}  Qd7 {[%clk 0:07:05]} 38. Kg2 {[%clk 0:07:55]}  Rc8 {[%clk 0:07:05]} 39. Qd3 {[%clk 0:06:31]}  Qf7 {[%clk 0:05:11]}
40. Qf3 {[%clk 0:04:16]}  Rc2+ {[%clk 0:03:53]} 41. Re2 {[%clk 0:04:41]}  Qg6 {[%clk 0:03:51]} 42. Kg1 {[%clk 0:02:34]}  Rxe2 {[%clk 0:02:10]}
43. Qxe2 {[%clk 0:03:00]}  Nf4 {[%clk 0:01:21]} 44. Qd1 {[%clk 0:02:26]}  Nd5 {[%clk 0:00:48]} 45. Qe2 {[%clk 0:01:53]}  Nf4 {[%clk 0:00:49]}
46. Qf1 {[%clk 0:02:15]}  Nd5 {[%clk 0:01:12]} 47. Qd1 {[%clk 0:01:17]}  Ne3 {[%clk 0:01:03]} 48. Qc1 {[%clk 0:00:42]}  Qe4 {[%clk 0:01:09]}
49. Kf2 {[%clk 0:00:56]}  Ng4+ {[%clk 0:01:27]} 50. Kg1 {[%clk 0:01:18]}  Ne3 {[%clk 0:01:22]} 51. Kf2 {[%clk 0:01:44]}  Ng4+ {[%clk 0:01:38]}
52. Kg1 {[%clk 0:02:13]}  Qe2 {[%clk 0:01:33]} 53. Qc8+ {[%clk 0:02:34]}  Kh7 {[%clk 0:01:59]} 54. Qf5+ {[%clk 0:03:00]}  Kg8 {[%clk 0:02:08]}
55. Qd5+ {[%clk 0:02:03]}  Kh8 {[%clk 0:02:05]} 56. Qa8+ {[%clk 0:02:19]}  Kh7 {[%clk 0:02:31]} 57. Qg2 {[%clk 0:02:24]}  Qe3+ {[%clk 0:01:41]}
58. Kf1 {[%clk 0:02:22]}  Qd3+ {[%clk 0:01:21]} 59. Ke1 {[%clk 0:02:25]}  Qb1+ {[%clk 0:01:41]} 0-1

[Event "7th Paul Keres Memorial Festival 2026 Classic A"]
[Site "ESTONIA Resort Hotel & Spa conference center, EE"]
[Date "2026.08.01"]
[Round "9"]
[White "Lagarde, Maxime"]
[Black "Keinanen, Anastasia"]
[Result "1-0"]
[Board "5"]
[TimeControl "5400+30"]
[WhiteFideId "662399"]
[BlackFideId "34101737"]
[WhiteElo "2622"]
[BlackElo "2259"]
[WhiteTitle "GM"]
[BlackTitle "WIM"]
[WhiteClock "0:49:28"]
[BlackClock "0:08:32"]
[Variant "Standard"]
[EndDate "2026.08.01"]
[EndTime "10:02:05"]

1. e4 {[%clk 1:26:19]}  e5 {[%clk 1:30:54]} 2. Nf3 {[%clk 1:26:40]}  Nc6 {[%clk 1:31:18]} 3. Bc4 {[%clk 1:27:07]}  d6 {[%clk 1:29:18]}
4. O-O {[%clk 1:27:14]}  Be7 {[%clk 1:29:02]} 5. d4 {[%clk 1:27:34]}  Nf6 {[%clk 1:20:38]} 6. d5 {[%clk 1:27:59]}  Nb8 {[%clk 1:19:45]}
7. Nc3 {[%clk 1:28:24]}  O-O {[%clk 1:19:43]} 8. a4 {[%clk 1:28:49]}  Ne8 {[%clk 1:17:38]} 9. a5 {[%clk 1:27:52]}  a6 {[%clk 1:17:19]}
10. h3 {[%clk 1:26:26]}  g6 {[%clk 1:06:42]} 11. Bh6 {[%clk 1:26:47]}  Ng7 {[%clk 1:07:08]} 12. Qd2 {[%clk 1:25:09]}  f6 {[%clk 0:59:10]}
13. Kh2 {[%clk 1:19:36]}  Rf7 {[%clk 0:57:38]} 14. g4 {[%clk 1:18:49]}  Nd7 {[%clk 0:40:08]} 15. Rg1 {[%clk 1:18:48]}  g5 {[%clk 0:37:21]}
16. h4 {[%clk 1:16:22]}  Nf8 {[%clk 0:37:21]} 17. Nd1 {[%clk 1:10:48]}  Ng6 {[%clk 0:36:21]} 18. Ne3 {[%clk 1:11:01]}  Nf4 {[%clk 0:29:43]}
19. Nf5 {[%clk 1:08:49]}  Ne8 {[%clk 0:19:43]} 20. Rg3 {[%clk 1:08:30]}  Kh8 {[%clk 0:18:34]} 21. Rh1 {[%clk 1:07:53]}  b5 {[%clk 0:14:49]}
22. Bb3 {[%clk 1:06:10]}  c6 {[%clk 0:13:10]} 23. dxc6 {[%clk 1:05:01]}  Be6 {[%clk 0:13:23]} 24. hxg5 {[%clk 1:02:47]}  Bxb3 {[%clk 0:13:01]}
25. cxb3 {[%clk 0:47:49]}  fxg5 {[%clk 0:13:12]} 26. Nxe7 {[%clk 0:46:49]}  Qxe7 {[%clk 0:13:25]} 27. Kg1 {[%clk 0:47:02]}  Rc8 {[%clk 0:09:39]}
28. Nxg5 {[%clk 0:46:51]}  Rxc6 {[%clk 0:07:07]} 29. Nxf7+ {[%clk 0:46:51]}  Qxf7 {[%clk 0:07:33]} 30. Bxf4 {[%clk 0:47:12]}  exf4 {[%clk 0:07:56]}
31. Rgh3 {[%clk 0:46:54]}  Nf6 {[%clk 0:07:47]} 32. Qxf4 {[%clk 0:47:14]}  Qg7 {[%clk 0:07:32]} 33. g5 {[%clk 0:46:56]}  Rc5 {[%clk 0:07:57]}
34. Rg3 {[%clk 0:47:17]}  Nd7 {[%clk 0:07:43]} 35. g6 {[%clk 0:47:36]}  h5 {[%clk 0:08:06]} 36. Rg5 {[%clk 0:47:15]}  Rxg5+ {[%clk 0:06:41]}
37. Qxg5 {[%clk 0:47:40]}  Nf6 {[%clk 0:07:07]} 38. Rxh5+ {[%clk 0:47:49]}  Nxh5 {[%clk 0:07:32]} 39. Qxh5+ {[%clk 0:48:15]}  Kg8 {[%clk 0:07:57]}
40. Qd5+ {[%clk 0:48:41]}  Kh8 {[%clk 0:08:08]} 41. Qa8+ {[%clk 0:49:03]}  Qg8 {[%clk 0:08:32]} 42. Qxg8+ {[%clk 0:49:28]} 1-0

[Event "7th Paul Keres Memorial Festival 2026 Classic A"]
[Site "ESTONIA Resort Hotel & Spa conference center, EE"]
[Date "2026.08.01"]
[Round "9"]
[White "Harikrishnan.A.Ra"]
[Black "Ter-Avetisjana, Agnesa Stepania"]
[Result "1-0"]
[Board "6"]
[TimeControl "5400+30"]
[WhiteFideId "5081483"]
[BlackFideId "11614900"]
[WhiteElo "2519"]
[BlackElo "2141"]
[WhiteTitle "GM"]
[BlackTitle "WIM"]
[WhiteClock "0:01:19"]
[BlackClock "0:03:22"]
[Variant "Standard"]
[EndDate "2026.08.01"]
[EndTime "11:55:11"]

1. Nf3 {[%clk 1:30:48]}  d5 {[%clk 1:28:10]} 2. g3 {[%clk 1:31:16]}  Nf6 {[%clk 1:28:29]} 3. Bg2 {[%clk 1:31:39]}  Bf5 {[%clk 1:28:57]}
4. O-O {[%clk 1:31:48]}  e6 {[%clk 1:29:21]} 5. d3 {[%clk 1:29:53]}  h6 {[%clk 1:29:44]} 6. c4 {[%clk 1:29:52]}  c6 {[%clk 1:30:08]}
7. Qb3 {[%clk 1:29:59]}  Qb6 {[%clk 1:30:30]} 8. Be3 {[%clk 1:29:09]}  Qxb3 {[%clk 1:30:54]} 9. axb3 {[%clk 1:29:33]}  Nbd7 {[%clk 1:31:11]}
10. Rxa7 {[%clk 1:24:41]}  Rxa7 {[%clk 1:31:11]} 11. Bxa7 {[%clk 1:25:08]}  Bd6 {[%clk 1:29:39]} 12. Be3 {[%clk 1:19:32]}  Ke7 {[%clk 1:29:21]}
13. Nc3 {[%clk 1:19:14]}  Ra8 {[%clk 1:28:33]} 14. Bd2 {[%clk 1:16:44]}  Bg4 {[%clk 1:27:31]} 15. Na4 {[%clk 1:07:52]}  dxc4 {[%clk 0:55:16]}
16. dxc4 {[%clk 1:08:18]}  Ne4 {[%clk 0:55:39]} 17. Be3 {[%clk 1:05:45]}  Nec5 {[%clk 0:55:11]} 18. Nxc5 {[%clk 1:02:04]}  Bxc5 {[%clk 0:54:50]}
19. Bd2 {[%clk 0:53:42]}  Bxf3 {[%clk 0:55:03]} 20. Bxf3 {[%clk 0:52:43]}  Bd4 {[%clk 0:55:24]} 21. Bb4+ {[%clk 0:52:27]}  Ke8 {[%clk 0:55:44]}
22. Ba3 {[%clk 0:51:53]}  Rd8 {[%clk 0:39:54]} 23. Be4 {[%clk 0:47:25]}  Bf6 {[%clk 0:24:04]} 24. Bc2 {[%clk 0:44:01]}  Be7 {[%clk 0:22:04]}
25. Rc1 {[%clk 0:28:57]}  c5 {[%clk 0:19:19]} 26. Be4 {[%clk 0:27:46]}  Rb8 {[%clk 0:19:31]} 27. Kf1 {[%clk 0:26:59]}  Ne5 {[%clk 0:10:12]}
28. e3 {[%clk 0:27:07]}  Kd7 {[%clk 0:09:57]} 29. Ke2 {[%clk 0:26:30]}  Kc7 {[%clk 0:08:20]} 30. f4 {[%clk 0:25:42]}  Ng4 {[%clk 0:07:34]}
31. h3 {[%clk 0:24:35]}  Nf6 {[%clk 0:07:55]} 32. Bf3 {[%clk 0:24:40]}  Rd8 {[%clk 0:08:03]} 33. g4 {[%clk 0:21:22]}  Nd7 {[%clk 0:08:25]}
34. Rd1 {[%clk 0:19:54]}  b6 {[%clk 0:08:41]} 35. h4 {[%clk 0:19:08]}  Nb8 {[%clk 0:08:04]} 36. Rg1 {[%clk 0:17:04]}  Nc6 {[%clk 0:04:41]}
37. g5 {[%clk 0:13:38]}  hxg5 {[%clk 0:05:00]} 38. hxg5 {[%clk 0:11:30]}  Rh8 {[%clk 0:05:20]} 39. Bg2 {[%clk 0:07:05]}  Rh4 {[%clk 0:02:12]}
40. Kf2 {[%clk 0:09:33]}  g6 {[%clk 0:01:49]} 41. Rd1 {[%clk 0:09:26]}  Rh8 {[%clk 0:01:15]} 42. Ke2 {[%clk 0:09:05]}  Rh2 {[%clk 0:00:48]}
43. Rg1 {[%clk 0:09:07]}  e5 {[%clk 0:00:51]} 44. Kf3 {[%clk 0:03:09]}  exf4 {[%clk 0:01:17]} 45. exf4 {[%clk 0:03:35]}  Bd6 {[%clk 0:00:56]}
46. Kg3 {[%clk 0:02:54]}  Rh5 {[%clk 0:01:20]} 47. Kg4 {[%clk 0:03:04]}  Nd4 {[%clk 0:00:59]} 48. Be4 {[%clk 0:03:05]}  Ne6 {[%clk 0:00:38]}
49. Rf1 {[%clk 0:03:21]}  Kd7 {[%clk 0:00:42]} 50. Rf2 {[%clk 0:02:13]}  Ke7 {[%clk 0:01:03]} 51. Bd5 {[%clk 0:02:18]}  Rh7 {[%clk 0:00:44]}
52. Re2 {[%clk 0:02:25]}  Kd7 {[%clk 0:01:10]} 53. Rf2 {[%clk 0:02:17]}  Nd4 {[%clk 0:01:09]} 54. Be4 {[%clk 0:01:56]}  Rh8 {[%clk 0:00:46]}
55. Rd2 {[%clk 0:02:29]}  Re8 {[%clk 0:00:50]} 56. Bd5 {[%clk 0:01:51]}  Ne6 {[%clk 0:00:44]} 57. Rf2 {[%clk 0:01:10]}  Re7 {[%clk 0:01:02]}
58. f5 {[%clk 0:00:48]}  gxf5+ {[%clk 0:00:35]} 59. Rxf5 {[%clk 0:01:16]}  Ke8 {[%clk 0:00:41]} 60. Rf6 {[%clk 0:01:33]}  Be5 {[%clk 0:00:35]}
61. Rh6 {[%clk 0:01:39]}  Bd6 {[%clk 0:00:32]} 62. Rf6 {[%clk 0:00:58]}  Kd7 {[%clk 0:00:46]} 63. Rh6 {[%clk 0:00:33]}  Nc7 {[%clk 0:00:48]}
64. b4 {[%clk 0:00:36]}  Nxd5 {[%clk 0:01:02]} 65. cxd5 {[%clk 0:01:02]}  Re4+ {[%clk 0:01:03]} 66. Kf3 {[%clk 0:01:27]}  Rf4+ {[%clk 0:00:46]}
67. Ke3 {[%clk 0:01:56]}  Rg4 {[%clk 0:00:54]} 68. bxc5 {[%clk 0:02:19]}  bxc5 {[%clk 0:01:20]} 69. Rf6 {[%clk 0:02:27]}  Ke7 {[%clk 0:01:19]}
70. Rf5 {[%clk 0:02:48]}  Rg3+ {[%clk 0:01:18]} 71. Ke4 {[%clk 0:03:03]}  Rg4+ {[%clk 0:01:00]} 72. Kd3 {[%clk 0:03:31]}  Rd4+ {[%clk 0:00:41]}
73. Kc3 {[%clk 0:04:00]}  Ra4 {[%clk 0:01:03]} 74. Kc2 {[%clk 0:03:35]}  Rc4+ {[%clk 0:01:21]} 75. Kb3 {[%clk 0:03:45]}  Rg4 {[%clk 0:01:33]}
76. Kc3 {[%clk 0:04:04]}  Ra4 {[%clk 0:01:58]} 77. Rf2 {[%clk 0:01:43]}  Rg4 {[%clk 0:02:10]} 78. Rf5 {[%clk 0:01:18]}  Ra4 {[%clk 0:02:36]}
79. Kb3 {[%clk 0:00:44]}  Rg4 {[%clk 0:03:02]} 80. Ka2 {[%clk 0:00:58]}  Rg2 {[%clk 0:03:28]} 81. Kb1 {[%clk 0:01:17]}  Rg1+ {[%clk 0:03:17]}
82. Kc2 {[%clk 0:01:46]}  Rg2+ {[%clk 0:03:42]} 83. Kc3 {[%clk 0:02:07]}  Rg4 {[%clk 0:00:38]} 84. b3 {[%clk 0:02:36]}  Rg3+ {[%clk 0:00:44]}
85. Kc4 {[%clk 0:03:05]}  Rg4+ {[%clk 0:01:08]} 86. Kb5 {[%clk 0:03:33]}  Rg3 {[%clk 0:01:30]} 87. Bxc5 {[%clk 0:02:48]}  Bxc5 {[%clk 0:01:41]}
88. Kxc5 {[%clk 0:03:13]}  Rxb3 {[%clk 0:02:08]} 89. d6+ {[%clk 0:03:06]}  Ke8 {[%clk 0:02:30]} 90. Kc6 {[%clk 0:02:41]}  Ra3 {[%clk 0:01:17]}
91. Rb5 {[%clk 0:01:05]}  Ra8 {[%clk 0:00:59]} 92. Rb7 {[%clk 0:01:03]}  Rc8+ {[%clk 0:01:13]} 93. Rc7 {[%clk 0:01:29]}  Ra8 {[%clk 0:01:00]}
94. Re7+ {[%clk 0:01:55]}  Kf8 {[%clk 0:01:03]} 95. Re5 {[%clk 0:02:00]}  Ra6+ {[%clk 0:01:12]} 96. Kc7 {[%clk 0:02:25]}  Ra7+ {[%clk 0:01:29]}
97. Kb6 {[%clk 0:02:50]}  Ra1 {[%clk 0:01:30]} 98. d7 {[%clk 0:03:13]}  Rb1+ {[%clk 0:01:17]} 99. Kc6 {[%clk 0:03:34]}  Rc1+ {[%clk 0:01:03]}
100. Rc5 {[%clk 0:03:13]}  Rd1 {[%clk 0:01:19]} 101. Kc7 {[%clk 0:03:22]} 1-0

[Event "7th Paul Keres Memorial Festival 2026 Classic A"]
[Site "ESTONIA Resort Hotel & Spa conference center, EE"]
[Date "2026.08.01"]
[Round "9"]
[White "Kirk, Ezra"]
[Black "Meessen, Rudolf"]
[Result "0-1"]
[Board "7"]
[TimeControl "5400+30"]
[WhiteFideId "600067"]
[BlackFideId "202029"]
[WhiteElo "2378"]
[BlackElo "2226"]
[WhiteTitle "IM"]
[BlackTitle "FM"]
[WhiteClock "0:04:53"]
[BlackClock "0:06:47"]
[Variant "Standard"]
[EndDate "2026.08.01"]
[EndTime "10:59:07"]

1. d4 {[%clk 1:26:10]}  d6 {[%clk 1:30:20]} 2. c4 {[%clk 1:24:52]}  e5 {[%clk 1:30:30]} 3. d5 {[%clk 1:23:25]}  a5 {[%clk 1:30:48]}
4. Nc3 {[%clk 1:22:40]}  Na6 {[%clk 1:30:45]} 5. e4 {[%clk 1:21:56]}  g6 {[%clk 1:29:10]} 6. Nf3 {[%clk 1:19:48]}  Bd7 {[%clk 1:28:52]}
7. Be2 {[%clk 1:18:55]}  Nf6 {[%clk 1:26:16]} 8. h3 {[%clk 1:12:52]}  Nc5 {[%clk 1:25:04]} 9. Qc2 {[%clk 1:13:13]}  h5 {[%clk 1:22:27]}
10. Be3 {[%clk 1:04:06]}  b6 {[%clk 1:21:14]} 11. Bd1 {[%clk 0:59:54]}  Bh6 {[%clk 1:19:03]} 12. Bxh6 {[%clk 1:00:15]}  Rxh6 {[%clk 1:19:28]}
13. g3 {[%clk 0:53:51]}  Kf8 {[%clk 1:16:05]} 14. Qd2 {[%clk 0:53:02]}  Kg7 {[%clk 1:15:29]} 15. Bc2 {[%clk 0:52:33]}  Rh8 {[%clk 1:11:49]}
16. Kf1 {[%clk 0:45:05]}  a4 {[%clk 0:58:10]} 17. Nh4 {[%clk 0:42:31]}  Qc8 {[%clk 0:51:47]} 18. Kg2 {[%clk 0:38:22]}  Qa6 {[%clk 0:51:55]}
19. Bd3 {[%clk 0:34:24]}  c6 {[%clk 0:52:11]} 20. dxc6 {[%clk 0:31:47]}  Bxc6 {[%clk 0:51:53]} 21. f3 {[%clk 0:31:38]}  d5 {[%clk 0:46:10]}
22. exd5 {[%clk 0:23:41]}  Bxd5 {[%clk 0:46:24]} 23. Nxd5 {[%clk 0:19:46]}  Nxd5 {[%clk 0:46:25]} 24. Bxg6 {[%clk 0:18:26]}  Ne7 {[%clk 0:23:38]}
25. Be4 {[%clk 0:11:07]}  Nxe4 {[%clk 0:23:03]} 26. fxe4 {[%clk 0:11:30]}  Qxc4 {[%clk 0:20:34]} 27. Rae1 {[%clk 0:11:33]}  f6 {[%clk 0:17:20]}
28. Rhf1 {[%clk 0:08:17]}  Rad8 {[%clk 0:13:41]} 29. Qf2 {[%clk 0:06:36]}  Rd6 {[%clk 0:14:04]} 30. a3 {[%clk 0:06:29]}  Rhd8 {[%clk 0:08:53]}
31. Re2 {[%clk 0:06:17]}  Qxe2 {[%clk 0:09:10]} 32. Qxe2 {[%clk 0:06:43]}  Rd2 {[%clk 0:09:35]} 33. Kf2 {[%clk 0:06:50]}  R8d3 {[%clk 0:08:14]}
34. Rc1 {[%clk 0:06:41]}  Kf8 {[%clk 0:06:43]} 35. Rc7 {[%clk 0:06:43]}  Rxe2+ {[%clk 0:06:55]} 36. Kxe2 {[%clk 0:07:07]}  Rb3 {[%clk 0:07:17]}
37. Nf5 {[%clk 0:04:06]}  Rxb2+ {[%clk 0:07:05]} 38. Kd3 {[%clk 0:04:29]}  Rb3+ {[%clk 0:06:44]} 39. Kc4 {[%clk 0:04:53]}  b5+ {[%clk 0:06:47]} 0-1